bitfinex/quotes_SOLUSD_20260223
["timestamp","ask_amount","ask_price","bid_price","bid_amount"]
[1771884226508,12.70196118,78.728,78.702,12.7061574]
[1771884226698,16.29748564,78.728,78.703,3.62725148]
[1771884227401,3.59552446,78.727,78.703,3.62725148]
[1771884228101,14.62859233,78.74,78.711,3.64164213]
[1771884228505,12.70018669,78.739,78.711,3.64164213]
[1771884228709,14.62859233,78.73,78.703,3.64164213]
[1771884229213,14.63176276,78.73,78.703,3.64164213]
[1771884229616,14.63176276,78.73,78.7,12.70635068]
[1771884230116,1.84476895,78.729,78.7,12.70635068]
[1771884231720,1.85502817,78.719,78.697,12.70696468]
[1771884231925,1.85502817,78.719,78.684,31.77230201]
[1771884231926,1.85502817,78.709,78.681,3.64164213]
[1771884232403,1.86013602,78.719,78.681,3.64164213]
[1771884232797,1.86013602,78.709,78.681,3.64164213]
[1771884233003,1.86013602,78.709,78.682,44.48285503]
[1771884233304,1.86013602,78.716,78.683,3.64164213]
[1771884235199,1.87011678,78.729,78.701,3.64164213]
[1771884235424,1.87011678,78.735,78.701,3.64164213]
[1771884235606,1.87496407,78.742,78.711,3.64164213]
[1771884236209,14.63176276,78.74,78.711,3.64164213]
[1771884237028,1.87975598,78.739,78.711,3.64164213]
[1771884238430,1.88924865,78.729,78.701,16.34796098]
[1771884239516,1.88924865,78.729,78.702,3.64164213]
[1771884240731,1.89844596,78.719,78.695,3.64164213]
[1771884245132,14.63176276,78.71,78.688,3.64164213]
[1771884245309,1.91637596,78.714,78.688,3.64164213]
[1771884246132,12.70357478,78.718,78.688,3.64164213]
[1771884247212,12.70357478,78.718,78.69,3.64164213]
[1771884248825,1.93335808,78.717,78.69,3.64164213]
[1771884249429,1.92725641,78.715,78.691,12.70793356]
[1771884249622,1.92725641,78.715,78.692,3.64164213]
[1771884250532,12.70376735,78.717,78.684,12.7089996]
[1771884250533,3.66333665,78.709,78.684,12.7089996]
[1771884251630,12.70518879,78.708,78.681,12.70954868]
[1771884251831,12.70465494,78.712,78.681,12.70954868]
[1771884252035,3.66333665,78.721,78.69,5.46407479]
[1771884252239,3.66333665,78.719,78.69,5.46407479]
[1771884252426,3.66333665,78.719,78.691,3.64164213]
[1771884255736,3.66333665,78.717,78.693,3.64164213]
[1771884255945,3.66333665,78.73,78.693,3.64164213]
[1771884256129,16.36507094,78.73,78.701,3.64164213]
[1771884256329,3.66333665,78.729,78.701,3.64164213]
[1771884257644,12.70196118,78.728,78.702,12.7061574]
[1771884257942,12.70196118,78.728,78.703,3.64164213]
[1771884258833,12.70054252,78.737,78.711,3.71906189]
[1771884260443,3.99885239,78.755,78.721,3.88752211]
[1771884260738,3.99885239,78.755,78.695,50.82898126]
[1771884260739,3.99885239,78.767,78.733,3.88752211]
[1771884260939,3.99885239,78.767,78.741,3.88752211]
[1771884262535,3.99885239,78.767,78.742,16.58722493]
[1771884262849,3.99885239,78.766,78.742,16.58722493]
[1771884263648,3.99885239,78.772,78.76,5.46407479]
[1771884263830,0.1,78.79,78.762,3.88752211]
[1771884264138,0.1,78.79,78.771,3.88752211]
[1771884264847,0.1,78.79,78.773,3.88752211]
[1771884265023,0.1,78.79,78.77,5.46407479]
[1771884265228,0.1,78.79,78.768,3.88752211]
[1771884266230,0.1,78.79,78.771,3.88752211]
[1771884266630,1.52097278,78.789,78.762,3.88752211]
[1771884266831,0.1,78.79,78.771,3.88752211]
[1771884267032,1.52097278,78.789,78.757,3.88752211]
[1771884267438,1.52097278,78.789,78.761,3.88752211]
[1771884268044,1.52135945,78.788,78.762,12.69647799]
[1771884268832,3.69383402,78.809,78.762,12.69647799]
[1771884268833,1.72665111,78.813,78.781,3.88752211]
[1771884269238,14.41492978,78.813,78.781,3.88752211]
[1771884269638,12.78884449,78.81,78.781,3.88752211]
[1771884270250,0.1,78.81,78.791,3.88752211]
[1771884270547,0.1,78.81,78.79,5.46407479]
[1771884270748,1.5224866,78.809,78.774,12.69454388]
[1771884271050,0.1,78.81,78.781,3.88752211]
[1771884271345,1.62290453,78.81,78.781,3.88752211]
[1771884272131,14.21181061,78.809,78.781,16.58086274]
[1771884272744,1.52326248,78.808,78.779,0.80944475]
[1771884272953,1.52326248,78.799,78.779,0.80944475]
[1771884273851,14.21385543,78.799,78.779,0.80944475]
[1771884274327,14.21385543,78.799,78.772,3.88752211]
[1771884276649,1.52474205,78.789,78.762,3.88752211]
[1771884279038,14.21769472,78.788,78.762,3.88752211]
[1771884279237,1.52540656,78.787,78.762,3.88752211]
[1771884280332,1.52540656,78.787,78.763,12.69631679]
[1771884280536,1.52540656,78.787,78.763,16.5838389]
[1771884280939,1.52540656,78.787,78.764,3.88752211]
[1771884281256,14.21872566,78.786,78.764,3.88752211]
[1771884282965,27.29167247,78.79,78.766,3.88752211]
[1771884284347,12.69207437,78.79,78.768,3.88752211]
[1771884286657,12.69083848,78.797,78.77,3.88752211]
[1771884287163,14.21888147,78.797,78.77,3.88752211]
[1771884289968,1.52924622,78.796,78.77,3.88752211]
[1771884292768,12.6911606,78.795,78.77,3.88752211]
[1771884292961,1.53019671,78.794,78.77,3.88752211]
[1771884293661,1.53019671,78.794,78.771,3.71983405]
[1771884295061,1.53072485,78.789,78.757,3.71983405]
[1771884295565,1.53072485,78.789,78.761,3.71983405]
[1771884296285,1.53072485,78.789,78.752,3.71983405]
[1771884296466,1.53130588,78.792,78.761,3.71983405]
[1771884296651,1.53130588,78.789,78.761,3.71983405]
[1771884298381,1.53130588,78.789,78.763,3.71983405]
[1771884299274,49.86967141,78.8,78.771,3.71983405]
[1771884299657,1.532195,78.799,78.771,3.71983405]
[1771884300471,1.53242373,78.797,78.771,3.71983405]
[1771884302282,1.53269494,78.789,78.761,3.71983405]
[1771884302485,1.53296307,78.787,78.762,3.71983405]
[1771884302662,1.53296307,78.788,78.762,3.71983405]
[1771884303966,12.69244926,78.787,78.762,16.41631204]
[1771884304366,12.69244926,78.787,78.763,3.71983405]
[1771884306881,14.22650336,78.787,78.763,3.71983405]
[1771884307090,1.5340541,78.786,78.763,3.71983405]
[1771884308791,12.69244926,78.787,78.765,3.71983405]
[1771884309785,14.2271465,78.787,78.765,3.71983405]
[1771884310178,12.69244926,78.787,78.765,3.71983405]
[1771884310485,1.53469724,78.786,78.765,3.71983405]
[1771884311574,1.53469724,78.786,78.767,3.71983405]
[1771884313787,1.53494383,78.784,78.763,16.41614678]
[1771884313992,1.53494383,78.784,78.708,50.820489]
[1771884313993,1.53494383,78.779,78.752,3.71983405]
[1771884314181,12.69277146,78.785,78.752,3.71983405]
[1771884314781,14.22780091,78.785,78.752,3.71983405]
[1771884315085,1.53502945,78.784,78.752,3.71983405]
[1771884315278,12.69309368,78.783,78.754,3.71983405]
[1771884315483,1.53512022,78.782,78.754,3.71983405]
[1771884316184,44.42261585,78.789,78.761,3.71983405]
[1771884316491,45.95783253,78.789,78.761,3.71983405]
[1771884316789,1.53521668,78.788,78.761,3.71983405]
[1771884318181,1.53540035,78.786,78.761,3.71983405]
[1771884318781,1.53540035,78.786,78.756,3.98776015]
[1771884318974,1.53549695,78.779,78.752,3.98776015]
[1771884321286,1.53590377,78.777,78.753,12.69792896]
[1771884322698,1.53590377,78.777,78.754,3.95571075]
[1771884322994,1.53609026,78.769,78.742,3.95571075]
[1771884323192,5.45342777,78.75,78.73,3.95571075]
[1771884323370,5.45342777,78.76,78.731,3.95571075]
[1771884324584,6.9897631,78.76,78.731,3.95571075]
[1771884324987,1.53633533,78.759,78.731,3.95571075]
[1771884325191,14.23405341,78.755,78.731,3.95571075]
[1771884325387,6.9897631,78.76,78.732,3.95571075]
[1771884325582,1.5364301,78.759,78.732,3.95571075]
[1771884326397,5.45342777,78.75,78.732,3.95571075]
[1771884327288,1.53653068,78.779,78.732,3.95571075]
[1771884327482,1.5366179,78.787,78.751,3.95571075]
[1771884327683,12.68928223,78.807,78.771,3.95571075]
[1771884327895,1.5366179,78.806,78.781,3.95571075]
[1771884328101,1.5366179,78.799,78.772,3.95571075]
[1771884329486,1.5366179,78.799,78.774,3.95571075]
[1771884329802,14.22615342,78.806,78.774,3.95571075]
[1771884329997,1.53675585,78.808,78.781,3.95571075]
[1771884330194,0.1,78.84,78.774,0.14216157]
[1771884330397,1.63675585,78.839,78.804,3.95571075]
[1771884330583,1.63693085,78.819,78.782,4.24003389]
[1771884330790,12.68407767,78.839,78.773,44.43146762]
[1771884330791,7.09035862,78.81,78.784,3.95571075]
[1771884330986,5.45342777,78.82,78.791,3.95571075]
[1771884331599,5.45342777,78.83,78.793,3.95571075]
[1771884332209,5.45342777,78.83,78.801,3.95571075]
[1771884332402,5.55342777,78.84,78.811,3.95571075]
[1771884332608,0.1,78.84,78.811,3.95571075]
[1771884332792,1.63725488,78.829,78.793,3.95571075]
[1771884332994,5.45342777,78.82,78.793,3.95571075]
[1771884333184,1.63725488,78.819,78.793,3.95571075]
[1771884333708,5.45342777,78.82,78.793,3.95571075]
[1771884333886,5.45342777,78.82,78.781,31.73324528]
[1771884333887,5.45342777,78.81,78.781,3.95571075]
[1771884334088,5.45342777,78.81,78.78,12.69347358]
[1771884334089,5.45342777,78.8,78.774,3.95571075]
[1771884335095,1.63743906,78.802,78.774,3.95571075]
[1771884335291,5.45342777,78.8,78.774,3.95571075]
[1771884335793,5.45342777,78.79,78.774,3.95571075]
[1771884336608,14.32831422,78.799,78.774,3.95571075]
[1771884337903,5.45342777,78.79,78.767,3.95571075]
[1771884338108,1.63812405,78.789,78.76,3.95571075]
[1771884338419,5.45342777,78.78,78.76,3.95571075]
[1771884338925,5.45342777,78.8,78.771,3.95571075]
[1771884339998,5.45342777,78.79,78.764,3.95571075]
[1771884342022,1.63848584,78.797,78.766,3.95571075]
[1771884342201,7.09220961,78.79,78.766,3.95571075]
[1771884344014,1.63909734,78.787,78.755,16.65331725]
[1771884344197,1.63909734,78.787,78.756,3.95571075]
[1771884346114,5.45342777,78.78,78.758,3.95571075]
[1771884348627,5.45342777,78.78,78.759,16.72467058]
[1771884348806,5.45342777,78.78,78.76,4.02770897]
[1771884349422,12.69373817,78.779,78.76,4.02770897]
[1771884349726,1.6402501,78.785,78.76,4.02770897]
[1771884349908,1.6402501,78.789,78.76,4.02770897]
[1771884350104,5.45342777,78.79,78.761,4.02770897]
[1771884350733,12.69212707,78.789,78.762,12.69647799]
[1771884350926,12.69212707,78.789,78.763,4.02770897]
[1771884351427,1.64043281,78.8,78.763,4.02770897]
[1771884351623,7.09386058,78.8,78.763,4.02770897]
[1771884351822,1.64043281,78.799,78.763,4.02770897]
[1771884352510,1.64043281,78.799,78.77,5.45342777]
[1771884352707,12.69067742,78.798,78.773,4.02770897]
[1771884355024,12.69067742,78.798,78.775,4.02770897]
[1771884357125,14.33182599,78.798,78.775,4.02770897]
[1771884357705,1.64122235,78.797,78.775,4.02770897]
[1771884358519,5.45256726,78.79,78.775,4.02770897]
[1771884359121,12.69212707,78.789,78.764,4.02770897]
[1771884359320,14.33347471,78.789,78.764,4.02770897]
[1771884359523,1.64142614,78.788,78.764,4.02770897]
[1771884360323,1.64142614,78.799,78.764,4.02770897]
[1771884360520,12.68955015,78.805,78.771,4.02770897]
[1771884360720,5.45256726,78.8,78.771,4.02770897]
[1771884360926,5.45256726,78.79,78.771,4.02770897]
[1771884361134,1.64156177,78.794,78.771,4.02770897]
[1771884361532,1.64156177,78.794,78.773,4.02770897]
[1771884361718,1.64168472,78.799,78.773,4.02770897]
[1771884361923,12.69051637,78.799,78.773,4.02770897]
[1771884362632,5.45256726,78.8,78.773,4.02770897]
[1771884363031,1.64168472,78.805,78.773,4.02770897]
[1771884363746,5.45256726,78.8,78.774,12.69454388]
[1771884363941,5.45256726,78.8,78.775,4.02770897]
[1771884369947,12.69051637,78.799,78.775,4.02770897]
[1771884371630,14.32931545,78.799,78.775,4.02770897]
[1771884373643,1.63645877,78.789,78.742,4.02770897]
[1771884373945,5.45256726,78.77,78.742,4.02770897]
[1771884375731,12.69534969,78.769,78.744,4.02770897]
[1771884375938,14.32953648,78.769,78.744,4.02770897]
[1771884376446,1.63418679,78.768,78.744,4.02770897]
[1771884376830,5.45256726,78.76,78.744,4.02770897]
[1771884377029,1.63308664,78.759,78.731,4.02770897]
[1771884377344,5.45256726,78.76,78.731,4.02770897]
[1771884377751,1.63199541,78.77,78.741,4.02770897]
[1771884378643,7.08456267,78.77,78.741,4.02770897]
[1771884378851,19.77982956,78.77,78.741,4.02770897]
[1771884379232,7.08456267,78.77,78.741,4.02770897]
[1771884379546,19.77977782,78.77,78.741,4.02770897]
[1771884380928,19.77977782,78.77,78.743,3.98633786]
[1771884382053,12.68858408,78.811,78.761,3.98633786]
[1771884382240,5.45256726,78.81,78.771,3.98633786]
[1771884382742,5.45256726,78.81,78.781,3.98633786]
[1771884382945,12.68890608,78.809,78.781,3.98633786]
[1771884384739,0.15944174,78.808,78.781,3.98633786]
[1771884384939,0.15944174,78.808,78.783,3.98633786]
[1771884393465,0.15998228,78.799,78.771,3.98633786]
[1771884393765,5.45256726,78.8,78.771,3.98633786]
[1771884393942,5.61263122,78.8,78.771,3.98633786]
[1771884394662,12.85066367,78.799,78.772,3.98633786]
[1771884394885,0.1601473,78.798,78.772,3.98633786]
[1771884396849,0.16031087,78.798,78.772,3.98633786]
[1771884402269,5.45256726,78.79,78.772,3.98633786]
[1771884402471,0.16067843,78.789,78.761,16.68295803]
[1771884402770,0.16067843,78.789,78.762,3.98633786]
[1771884404668,3.66901973,78.769,78.73,5.45256726]
[1771884404873,5.45256726,78.79,78.75,5.45256726]
[1771884405070,3.66901973,78.789,78.76,5.45256726]
[1771884405766,16.3611468,78.789,78.76,5.45256726]
[1771884406672,16.3611468,78.789,78.763,3.98633786]
[1771884406971,3.66901973,78.788,78.763,3.98633786]
[1771884409363,12.69212707,78.789,78.763,3.98633786]
[1771884409364,9.13288523,78.78,78.763,3.98633786]
[1771884410373,3.68031797,78.779,78.751,3.65018545]
[1771884411082,5.45256726,78.77,78.751,3.65018545]
[1771884411454,12.69534969,78.769,78.751,3.65018545]
[1771884413374,3.68031797,78.768,78.751,3.65018545]
[1771884414375,12.69534969,78.769,78.751,3.65018545]
[1771884415893,5.45688679,78.77,78.751,3.65018545]
[1771884416176,3.68031797,78.798,78.761,3.65018545]
[1771884418380,3.68031797,78.796,78.763,3.65018545]
[1771884418583,3.68031797,78.779,78.758,3.65018545]
[1771884419481,5.45688679,78.77,78.753,12.69781365]
[1771884419694,5.45688679,78.77,78.73,5.45688679]
[1771884419695,5.45688679,78.76,78.749,12.69844221]
[1771884419985,5.45688679,78.76,78.749,16.34862766]
[1771884421055,16.37567508,78.769,78.749,16.34862766]
[1771884421777,3.68031797,78.759,78.738,3.65018545]
[1771884422077,12.69535711,78.769,78.738,3.65018545]
[1771884422261,3.68031797,78.768,78.738,3.65018545]
[1771884426883,3.68031797,78.767,78.74,3.65018545]
[1771884428581,3.68031797,78.792,78.751,3.65018545]
[1771884428783,3.68031797,78.798,78.771,3.65018545]
[1771884429198,3.68031797,78.789,78.761,3.65018545]
[1771884429372,3.68031797,78.789,78.764,3.65018545]
[1771884433390,3.68031797,78.787,78.765,12.69599441]
[1771884434787,3.68031797,78.787,78.765,3.65018545]
[1771884436785,12.69212707,78.789,78.767,3.65018545]
[1771884437086,3.68031797,78.788,78.767,3.65018545]
[1771884439681,3.68031797,78.788,78.769,3.8638962]
[1771884441095,12.69244926,78.787,78.769,3.8638962]
[1771884441480,16.71594078,78.787,78.769,3.8638962]
[1771884442695,4.02349152,78.787,78.769,3.8638962]
[1771884443683,5.45688679,78.79,78.77,3.78061434]
[1771884444084,12.69212707,78.789,78.77,3.78061434]
[1771884444282,16.71561859,78.789,78.77,3.78061434]
[1771884446800,4.02349152,78.788,78.77,3.78061434]
[1771884448101,16.71594078,78.787,78.77,3.78061434]
[1771884448286,4.02349152,78.786,78.764,3.78061434]
[1771884449493,4.02349152,78.784,78.764,3.78061434]
[1771884449692,4.02349152,78.769,78.74,5.45688679]
[1771884449904,5.45688679,78.77,78.741,12.69986411]
[1771884451402,12.69534969,78.769,78.741,12.69986411]
[1771884451901,12.69534969,78.769,78.742,3.78061434]
[1771884454507,5.45688679,78.77,78.744,3.78061434]
[1771884454799,4.02349152,78.771,78.744,3.78061434]
[1771884454998,16.71865575,78.771,78.744,3.78061434]
[1771884455309,5.45688679,78.77,78.744,3.78061434]
[1771884455488,16.71865575,78.771,78.744,3.78061434]
[1771884456886,4.02349152,78.77,78.745,12.69921899]
[1771884457092,4.02349152,78.77,78.746,3.78061434]
[1771884457292,9.48037831,78.77,78.746,3.78061434]
[1771884457589,4.02349152,78.769,78.746,3.78061434]
[1771884458105,4.02349152,78.769,78.748,3.78061434]
[1771884460202,4.02349152,78.769,78.749,12.69857395]
[1771884460409,4.02349152,78.769,78.75,3.78061434]
[1771884463110,4.02349152,78.779,78.752,3.78061434]
[1771884465818,4.02349152,78.777,78.752,3.78061434]
[1771884466715,5.45688679,78.77,78.752,3.78061434]
[1771884467017,4.02349152,78.769,78.752,3.78061434]
[1771884467815,4.02349152,78.769,78.753,12.69792896]
[1771884467989,4.02349152,78.769,78.754,4.06280183]
[1771884470514,4.10546275,78.773,78.754,4.06280183]
[1771884473404,16.80032894,78.772,78.754,4.06280183]
[1771884474924,4.10546275,78.775,78.755,4.06280183]
[1771884475423,12.69454388,78.774,78.755,4.06280183]
[1771884475721,4.10546275,78.773,78.755,4.06280183]
[1771884478005,12.69486619,78.772,78.755,4.06280183]
[1771884478720,4.10546275,78.786,78.757,4.06280183]
[1771884478902,4.10546275,78.786,78.756,12.69744527]
[1771884478903,12.69118543,78.795,78.77,5.45604057]
[1771884479233,4.10546275,78.803,78.771,4.06280183]
[1771884479820,4.10546275,78.803,78.781,4.06280183]
[1771884480007,12.69003324,78.802,78.781,4.06280183]
[1771884480820,4.10546275,78.789,78.767,12.69554453]
[1771884481829,4.10546275,78.779,78.731,44.45517013]
[1771884482008,4.10546275,78.779,78.751,12.69825145]
[1771884482622,16.79936206,78.778,78.751,12.69825145]
[1771884482821,16.79936206,78.778,78.752,4.06280183]
[1771884483022,4.10546275,78.777,78.752,4.06280183]
[1771884484423,4.10546275,78.777,78.753,12.69792896]
[1771884484605,4.10546275,78.777,78.754,4.06280183]
[1771884486926,4.10546275,78.777,78.756,4.06280183]
[1771884488119,4.10546275,78.784,78.761,4.06280183]
[1771884488826,4.10546275,78.784,78.77,9.5188424]
[1771884490223,4.10546275,78.784,78.77,4.06280183]
[1771884490826,4.10546275,78.784,78.764,4.06280183]
[1771884491931,4.10546275,78.784,78.765,12.69599441]
[1771884492134,4.10546275,78.784,78.766,4.06280183]
[1771884492332,102.3,78.817,78.766,4.06280183]
[1771884492333,0.1,78.84,78.771,0.28432314]
[1771884492533,522.7,79.042,78.77,10.91208114]
[1771884492534,5.45604057,78.96,78.86,5.45604057]
[1771884492739,5.55604057,78.91,78.84,5.45604057]
[1771884492912,0.1,78.91,78.88,5.45604057]
[1771884493118,0.1,78.91,78.87,5.45604057]
[1771884493313,5.45604057,78.88,78.826,4.06280183]
[1771884493614,5.45604057,78.88,78.8,5.45604057]
[1771884493615,5.45604057,78.86,78.831,4.06280183]
[1771884494132,12.68021263,78.864,78.831,4.06280183]
[1771884494514,4.10546275,78.863,78.831,4.06280183]
[1771884494714,4.10546275,78.859,78.825,4.06280183]
[1771884495439,4.10546275,78.859,78.82,5.45604057]
[1771884495440,4.10546275,78.849,78.816,4.06280183]
[1771884496128,4.10546275,78.847,78.816,4.06280183]
[1771884497746,4.10546275,78.845,78.816,4.06280183]
[1771884498044,4.10546275,78.845,78.821,3.97619753]
[1771884499140,2.17913792,78.845,78.821,3.97619753]
[1771884501143,3.98607079,78.843,78.821,3.97619753]
[1771884501523,3.98607079,78.829,78.79,5.45604057]
[1771884501738,3.98607079,78.819,78.79,5.45604057]
[1771884502046,3.98607079,78.819,78.791,3.7912073]
[1771884502224,3.98607079,78.819,78.792,3.7912073]
[1771884503247,3.98607079,78.817,78.792,3.7912073]
[1771884507123,3.98607079,78.84,78.811,3.7912073]
[1771884507724,3.98607079,78.852,78.821,3.7912073]
[1771884507922,3.98607079,78.858,78.831,3.7912073]
[1771884509055,3.98607079,78.849,78.82,5.45604057]
[1771884509345,3.98607079,78.849,78.81,5.45604057]
[1771884509522,3.98607079,78.849,78.82,5.45604057]
[1771884510648,3.98607079,78.847,78.82,5.45604057]
[1771884511345,3.98607079,78.87,78.841,2.37242947]
[1771884511546,3.98607079,78.87,78.821,12.68697428]
[1771884511860,3.98607079,78.87,78.83,5.45604057]
[1771884511861,3.98607079,78.859,78.83,5.45604057]
[1771884512149,3.98607079,78.859,78.82,5.45604057]
[1771884512543,12.68102158,78.858,78.82,5.45604057]
[1771884512736,3.98607079,78.857,78.82,7.85008048]
[1771884514250,3.98607079,78.857,78.821,15.09161406]
[1771884514637,3.98607079,78.855,78.821,2.40463978]
[1771884515029,3.98607079,78.855,78.82,5.45604057]
[1771884515924,3.98607079,78.855,78.821,2.42552207]
[1771884517132,3.98607079,78.853,78.82,5.45604057]
[1771884517456,3.98607079,78.853,78.83,5.45604057]
[1771884517831,3.98607079,78.853,78.819,2.44595259]
[1771884518034,3.98607079,78.849,78.82,5.45604057]
[1771884518726,3.98607079,78.849,78.82,7.91206483]
[1771884518936,3.98607079,78.849,78.83,5.45604057]
[1771884519252,3.98607079,78.847,78.82,7.91206483]
[1771884519458,3.98607079,78.847,78.822,2.45602426]
[1771884520534,12.68295157,78.846,78.83,5.45604057]
[1771884520934,31.69943957,78.866,78.841,2.47582673]
[1771884521155,31.69943957,78.866,78.85,5.45604057]
[1771884521365,3.98607079,78.87,78.85,5.45604057]
[1771884521939,12.67741823,78.881,78.86,5.45604057]
[1771884522239,3.98607079,78.88,78.86,5.45604057]
[1771884522745,12.6776455,78.879,78.86,5.45604057]
[1771884523557,3.98607079,78.878,78.853,2.48560672]
[1771884523940,3.98607079,78.878,78.85,5.45604057]
[1771884524541,0.1,78.89,78.87,5.45604057]
[1771884524750,3.98607079,78.889,78.861,2.51414181]
[1771884526348,0.2,78.88,78.861,2.51414181]
[1771884526559,3.98607079,78.879,78.861,2.51414181]
[1771884527362,3.98607079,78.877,78.861,2.51414181]
[1771884527538,0.2,78.87,78.861,2.51414181]
[1771884528441,3.99704156,78.879,78.861,2.51414181]
[1771884528854,3.99704156,78.879,78.86,5.45604057]
[1771884531164,3.99704156,78.879,78.85,5.45604057]
[1771884531770,3.99704156,78.877,78.85,5.45604057]
[1771884534571,3.99704156,78.875,78.85,5.45604057]
[1771884535275,3.99704156,78.875,78.85,5.44111517]
[1771884535772,4.19704156,78.869,78.85,5.44111517]
[1771884536875,0.2,78.859,78.85,5.44111517]
[1771884537651,12.67972421,78.867,78.851,2.4361231]
[1771884539054,3.99704156,78.866,78.823,2.4441154]
[1771884539271,12.67972421,78.867,78.527,25.46868221]
[1771884539272,3.69383402,78.864,78.82,5.44111517]
[1771884539476,3.99704156,78.863,78.84,5.44111517]
[1771884539860,3.99704156,78.863,78.8,5.44111517]
[1771884539861,3.99704156,78.859,78.83,5.44111517]
[1771884540064,3.99704156,78.859,78.8,5.44111517]
[1771884540065,3.99704156,78.859,78.814,2.45208275]
[1771884540255,3.99704156,78.849,78.82,5.44111517]
[1771884540774,3.99704156,78.849,78.8,5.44111517]
[1771884540775,3.99704156,78.863,78.831,2.4600236]
[1771884541363,3.99704156,78.861,78.84,5.44111517]
[1771884541972,4.19704156,78.859,78.84,5.44111517]
[1771884542461,12.68102158,78.858,78.84,5.44111517]
[1771884542676,3.99704156,78.857,78.84,5.44111517]
[1771884542881,0.2,78.849,78.84,5.44111517]
[1771884543667,0.2,78.849,78.836,2.46786542]
[1771884543979,0.2,78.839,78.836,2.46786542]
[1771884544178,0.2,78.849,78.836,2.46786542]
[1771884544364,0.2,78.849,78.83,7.92425783]
[1771884547183,0.2,78.849,78.831,2.5054535]
[1771884548964,0.4,78.849,78.831,2.5054535]
[1771884549166,3.99704156,78.847,78.82,5.44111517]
[1771884549872,4.19704156,78.839,78.82,5.44111517]
[1771884550481,4.19704156,78.839,78.812,2.52695332]
[1771884550662,0.2,78.829,78.812,2.52695332]
[1771884552983,0.2,78.839,78.821,2.54776853]
[1771884553286,0.4,78.849,78.831,2.34776853]
[1771884554086,1e-08,78.859,78.84,5.44111517]
[1771884554293,0.2,78.869,78.85,5.44111517]
[1771884554468,5.54111517,78.91,78.861,4.00490709]
[1771884554663,12.67282565,78.909,78.88,5.44111517]
[1771884554875,0.1,78.91,78.89,5.44111517]
[1771884555384,6.62616137,78.908,78.89,5.44111517]
[1771884556389,6.62616137,78.908,78.82,50.74828057]
[1771884556390,3.99704156,78.938,78.901,4.01960487]
[1771884556581,3.99704156,78.938,78.91,5.44111517]
[1771884556962,3.99704156,78.936,78.91,5.44111517]
[1771884557165,0.1,78.94,78.92,5.44111517]
[1771884557366,0.1,78.94,78.921,4.01960487]
[1771884558086,0.1,78.94,78.92,5.44111517]
[1771884558288,4.32577596,78.938,78.92,5.44111517]
[1771884558473,0.1,78.94,78.92,9.48359902]
[1771884558784,0.1,78.94,78.921,4.04248385]
[1771884559485,0.1,78.94,78.93,14.5475359]
[1771884560001,4.42577596,78.94,78.92,14.5475359]
[1771884560171,0.1,78.94,78.921,4.05422383]
[1771884561070,0.1,78.94,78.92,27.21850194]
[1771884562073,0.1,78.94,78.93,14.5475359]
[1771884563480,0.1,78.94,78.921,4.05673407]
[1771884564273,4.0652059,78.956,78.931,4.05835987]
[1771884564582,0.1,78.96,78.922,12.67073819]
[1771884564583,0.1,78.96,78.941,4.0591588]
[1771884564767,0.2419126,78.97,78.96,14.5475359]
[1771884564974,4.0652059,79.003,78.961,4.0591588]
[1771884565276,4.0652059,78.999,78.958,4.0591588]
[1771884565471,4.0652059,78.999,78.97,14.5475359]
[1771884565681,47.9869787,79.019,78.96,14.5475359]
[1771884565682,4.0652059,78.997,78.96,14.5475359]
[1771884568093,4.0652059,78.989,78.95,27.21364009]
[1771884568270,4.0652059,78.989,78.944,31.66769649]
[1771884568271,4.0652059,78.969,78.94,27.21522657]
[1771884568476,4.0652059,78.969,78.941,4.06150093]
[1771884569078,4.0652059,78.961,78.938,17.14987948]
[1771884569697,4.0652059,78.949,78.923,12.67057765]
[1771884569902,4.0652059,78.949,78.919,12.67118022]
[1771884570082,12.66656533,78.948,78.919,12.67118022]
[1771884570289,4.0652059,78.947,78.919,12.67118022]
[1771884571395,4.0652059,78.947,78.915,16.73629142]
[1771884571598,4.0652059,78.947,78.916,4.06450014]
[1771884575482,4.0652059,78.939,78.902,4.06736391]
[1771884575992,4.0652059,78.939,78.91,14.5475359]
[1771884576302,12.66688622,78.946,78.911,4.28875909]
[1771884576487,12.66573184,78.954,78.921,4.28875909]
[1771884577804,14.5475359,78.95,78.921,4.28875909]
[1771884578098,4.0652059,78.949,78.921,4.28875909]
[1771884579188,14.5475359,78.93,78.904,4.28875909]
[1771884579399,4.0652059,78.929,78.904,4.28875909]
[1771884579904,4.0652059,78.939,78.911,4.28875909]
[1771884581305,4.0652059,78.946,78.911,4.28875909]
[1771884581499,4.0652059,78.946,78.905,44.35713832]
[1771884581500,4.0652059,78.946,78.921,4.28875909]
[1771884581699,14.5475359,78.96,78.89,14.5475359]
[1771884582003,4.0652059,78.958,78.921,4.28875909]
[1771884582600,44.3268025,78.959,78.891,5.36086188]
[1771884582601,4.0652059,78.929,78.891,4.28875909]
[1771884587210,4.0652059,78.929,78.89,14.5475359]
[1771884587211,4.0652059,78.929,78.893,4.28875909]
[1771884587385,4.0652059,78.929,78.901,4.28875909]
[1771884588214,12.66924887,78.932,78.901,4.28875909]